{"text_format":"1","workbook":"xlsx","n_sheets":1,"sheets":["Taul1"],"not_rendered":{"charts":0,"images":0,"macros":1,"external_links":1,"defined_names":1,"comments":0,"pivot_tables":0},"unopened":[],"bounds":{"document_bytes":16777216,"sheet_cells":100000,"rows_first":2000,"rows_last":500,"rows_between":2000,"halvings":0,"cell_chars":16384,"cell_head_chars":4096},"cells_cut":0,"cells_raw":0,"read":"whole","date_system":"1900"}

{"sheet":"Taul1","index":0,"n_rows":109,"n_cols":29,"rows_kept":109,"cut":false,"hidden":false,"merged":[]}
["Nimi","NimiJaSyntymä","Pisteet yht.","Piste KA / juostu kilpailu","Kilpailu","Kilpailija","Luokka","Pisteet","Johtajana","Kaikki päivät","Kilpailu","Kilpailija","Luokka","Pisteet","Johtajana","Kaikki päivät","Kilpailu","Kilpailija","Luokka","Pisteet","Johtajana","Kierrokset","Syntymäaika","Sukupuoli","Paino kg","Rotu","Sukutaulu",null,"Lisätiedot"]
["Ahto","Ahto44390",759.78955566998707,{"$f":"AVERAGEIFS(H2:PV2,H$1:PV$1,\"Pisteet\",H2:PV2,\">0\")","v":253.26318522332903},"Jämin Syyskisa","Ville Rakkolainen","DR8",196.76846407729079,"Ei","Kyllä","Jämin Syys-SM","Ville Rakkolainen","DR8",198.18592235609833,"Ei","Kyllä","MiniDistance","Ville Rakkolainen","DR",364.83516923659789,"Ei",4,"2021-07-13","uros",29,"x",{"$f":"HYPERLINK(AB2,\"Sukutaulu\")","v":"Sukutaulu"},{"$f":"[1]Sorttaus!AG8","v":"https://www.trekkhundregisteret.no/dog/68157-ahto-joonas-elena-kallio/"},"Näytä tiedot"]
["Fun Racing Origo","Fun Racing Origo44003",759.78955566998707,253.26318522332903,"Jämin Syyskisa","Ville Rakkolainen","DR8",196.76846407729079,"Kyllä","Kyllä","Jämin Syys-SM","Ville Rakkolainen","DR8",198.18592235609833,"Kyllä","Kyllä","MiniDistance","Ville Rakkolainen","DR",364.83516923659789,"Kyllä",4,"2020-06-21","narttu",23,"x","Sukutaulu",{"$f":"[1]Sorttaus!AG9","v":"https://www.trekkhundregisteret.no/dog/52643-fun-racing-origo-hege-ingebrgtsen/"},"Näytä tiedot"]
["Nuppu","Nuppu45095",759.78955566998707,253.26318522332903,"Jämin Syyskisa","Ville Rakkolainen","DR8",196.76846407729079,"Kyllä","Kyllä","Jämin Syys-SM","Ville Rakkolainen","DR8",198.18592235609833,"Kyllä","Kyllä","MiniDistance","Ville Rakkolainen","DR",364.83516923659789,null,null,"2023-06-18","narttu",23,"x","Sukutaulu",{"$f":"[1]Sorttaus!AG10","v":"https://www.trekkhundregisteret.no/dog/68159-nuppu-joonas-elena-kallio/"},"Näytä tiedot"]
["Pate","Pate45095",759.78955566998707,253.26318522332903,"Jämin Syyskisa","Ville Rakkolainen","DR8",196.76846407729079,"Ei","Kyllä","Jämin Syys-SM","Ville Rakkolainen","DR8",198.18592235609833,"Ei","Kyllä","MiniDistance","Ville Rakkolainen","DR",364.83516923659789,"Ei",4,"2023-06-18","uros",29,"x","Sukutaulu",{"$f":"[1]Sorttaus!AG11","v":"https://www.trekkhundregisteret.no/dog/68160-pate-joonas-elena-kallio/"},"Näytä tiedot"]
["Powerline Olli","Powerline Olli43905",759.78955566998707,253.26318522332903,"Jämin Syyskisa","Ville Rakkolainen","DR8",196.76846407729079,"Ei","Kyllä","Jämin Syys-SM","Ville Rakkolainen","DR8",198.18592235609833,"Ei","Kyllä","MiniDistance","Ville Rakkolainen","DR",364.83516923659789,"Ei",4,"2020-03-15","uros",26,"x","Sukutaulu",{"$f":"[1]Sorttaus!AG12","v":"https://www.trekkhundregisteret.no/dog/68158-olli-sonja-pasi-heinonen/"},"Näytä tiedot"]
["Powerline Samppa","Powerline Samppa44798",759.78955566998707,253.26318522332903,"Jämin Syyskisa","Ville Rakkolainen","DR8",196.76846407729079,"Ei","Kyllä","Jämin Syys-SM","Ville Rakkolainen","DR8",198.18592235609833,"Ei","Kyllä","MiniDistance","Ville Rakkolainen","DR",364.83516923659789,"Ei",4,"2022-08-25","uros",26,"x","Sukutaulu",{"$f":"[1]Sorttaus!AG13","v":"https://www.trekkhundregisteret.no/dog/67497-samppa-sonja-pasi-heinonen/"},"Näytä tiedot"]
["Rane","Rane45114",759.78955566998707,253.26318522332903,"Jämin Syyskisa","Ville Rakkolainen","DR8",196.76846407729079,"Ei","Kyllä","Jämin Syys-SM","Ville Rakkolainen","DR8",198.18592235609833,"Ei","Kyllä","MiniDistance","Ville Rakkolainen","DR",364.83516923659789,"Ei",4,"2023-07-07","uros",29,"x","Sukutaulu",{"$f":"[1]Sorttaus!AG14","v":"https://www.trekkhundregisteret.no/dog/68161-rane-nina-teegen/"},"Näytä tiedot"]
["Olga","Olga43905",744.13805055537819,248.04601685179273,"Jämin Syyskisa","Sonja Heinonen","DR8",194.41112321444962,"Kyllä","Kyllä","Jämin Syys-SM","Pasi Heinonen","DR8",201.2277119278117,"Kyllä","Kyllä","MiniDistance","Sonja Heinonen","DR",348.49921541311687,null,null,"2020-03-15","narttu",23,"x","Sukutaulu",{"$f":"[1]Sorttaus!AG15","v":"https://www.trekkhundregisteret.no/dog/65956-olga-sonja-pasi-heinonen/"},"Näytä tiedot"]
["Sauli","Sauli44798",744.13805055537819,{"$f":"AVERAGEIFS(H10:PV10,H$1:PV$1,\"Pisteet\",H10:PV10,\">0\")","v":248.04601685179273},"Jämin Syyskisa","Sonja Heinonen","DR8",194.41112321444962,"Kyllä","Kyllä","Jämin Syys-SM","Pasi Heinonen","DR8",201.2277119278117,"Kyllä","Kyllä","MiniDistance","Sonja Heinonen","DR",348.49921541311687,"Kyllä",4,"2022-08-25","uros",24,"x","Sukutaulu",{"$f":"[1]Sorttaus!AG16","v":"https://www.trekkhundregisteret.no/dog/65961-sauli-sonja-pasi-heinonen/"},"Näytä tiedot"]
["Sipsi","Sipsi44798",744.13805055537819,248.04601685179273,"Jämin Syyskisa","Sonja Heinonen","DR8",194.41112321444962,"Ei","Kyllä","Jämin Syys-SM","Pasi Heinonen","DR8",201.2277119278117,"Ei","Kyllä","MiniDistance","Sonja Heinonen","DR",348.49921541311687,"Ei",4,"2022-08-25","narttu",22,"x","Sukutaulu",{"$f":"[1]Sorttaus!AG17","v":"https://www.trekkhundregisteret.no/dog/65962-sipsi-sonja-pasi-heinonen/"},"Näytä tiedot"]
["Taimi","Taimi45293",744.13805055537819,248.04601685179273,"Jämin Syyskisa","Sonja Heinonen","DR8",194.41112321444962,"Ei","Kyllä","Jämin Syys-SM","Pasi Heinonen","DR8",201.2277119278117,"Ei","Kyllä","MiniDistance","Sonja Heinonen","DR",348.49921541311687,null,null,"2024-01-02","narttu",24,"x","Sukutaulu",{"$f":"[1]Sorttaus!AG18","v":"https://www.trekkhundregisteret.no/dog/65970-taimi-sonja-pasi-heinonen/"},"Näytä tiedot"]
["Tuksu","Tuksu45293",744.13805055537819,248.04601685179273,"Jämin Syyskisa","Sonja Heinonen","DR8",194.41112321444962,"Ei","Kyllä","Jämin Syys-SM","Pasi Heinonen","DR8",201.2277119278117,"Ei","Kyllä","MiniDistance","Sonja Heinonen","DR",348.49921541311687,"Ei",4,"2024-01-02","narttu",24,"x","Sukutaulu",{"$f":"[1]Sorttaus!AG19","v":"https://www.trekkhundregisteret.no/dog/65969-tuksu-sonja-pasi-heinonen/"},"Näytä tiedot"]
["Fun Racing Niitti","Fun Racing Niitti43964",726.80413095404685,242.26804365134896,"Jämin Syyskisa","Ville Rakkolainen","DR8",196.76846407729079,"Ei","Kyllä","Jämin Syys-SM","Lauri Kivioja","DR8",165.20049764015818,"Kyllä","Kyllä","MiniDistance","Ville Rakkolainen","DR",364.83516923659789,"Ei",4,"2020-05-13","narttu",23,"x","Sukutaulu",{"$f":"[1]Sorttaus!AG20","v":"https://www.trekkhundregisteret.no/dog/52226-fun-racing-niitti-hege-ingebrgtsen/"},"Näytä tiedot"]
["Hietasen Taika","Hietasen Taika45017",711.32785992105778,237.10928664035259,"Jämin Syyskisa","Milli Rakkolainen","DS1Y/J",148.30676832836156,"Kyllä","Kyllä","Jämin Syys-SM","Ville Rakkolainen","DR8",198.18592235609833,"Ei","Kyllä","MiniDistance","Ville Rakkolainen","DR",364.83516923659789,"Ei",4,"2023-04-01","narttu",29,"x","Sukutaulu",{"$f":"[1]Sorttaus!AG21","v":"https://www.trekkhundregisteret.no/dog/60921-hietasen-taika-jutta-tuukka-turkka/"},"Näytä tiedot"]
["Soma","Soma44798",711.30878845205143,237.10292948401715,"Jämin Syyskisa","Michela Leppänen","DS2",161.58186111112286,"Kyllä","Kyllä","Jämin Syys-SM","Pasi Heinonen","DR8",201.2277119278117,"Ei","Kyllä","MiniDistance","Sonja Heinonen","DR",348.49921541311687,"Kyllä",4,"2022-08-25","narttu",23,"x","Sukutaulu",{"$f":"[1]Sorttaus!AG22","v":"https://www.trekkhundregisteret.no/dog/67530-soma-sonja-pasi-heinonen/"},"Näytä tiedot"]
["Hippi (Jippi23)","Hippi (Jippi23)45095",646.21467294393233,215.40489098131079,"Jämin Syyskisa","Sonja Heinonen","DR8",194.41112321444962,"Ei","Kyllä","Jämin Syys-SM","Pasi Heinonen","DR8",103.30433431636585,"Ei","Ei","MiniDistance","Sonja Heinonen","DR",348.49921541311687,null,null,"2023-06-18","narttu",22,"x","Sukutaulu",{"$f":"[1]Sorttaus!AG23","v":"https://www.trekkhundregisteret.no/dog/65964-jippi23-joonas-elena-kallio/"},"Näytä tiedot"]
["Sonsonin Aikamoinen Eppu","Sonsonin Aikamoinen Eppu43668",493.92181961986029,164.64060653995344,"Jämin Syyskisa","Johanna Pelli","DR8",169.42629754898059,"Ei","Kyllä","Jämin Syys-SM","Lauri Kivioja","DR8",165.20049764015818,"Ei","Kyllä","MiniDistance","Johanna pelli","DR",159.29502443072153,"Ei",2,"2019-07-22","uros",26,"siperianhusky ","Sukutaulu",{"$f":"[1]Sorttaus!AG24","v":"https://jalostus.kennelliitto.fi/frmKoira.aspx?RekNo=FI45124%2F19&R=270"},"Näytä tiedot"]
["Sonsonin Aikamoinen Möykky","Sonsonin Aikamoinen Möykky43668",493.92181961986029,164.64060653995344,"Jämin Syyskisa","Johanna Pelli","DR8",169.42629754898059,"Kyllä","Kyllä","Jämin Syys-SM","Lauri Kivioja","DR8",165.20049764015818,"Kyllä","Kyllä","MiniDistance","Johanna pelli","DR",159.29502443072153,null,null,"2019-07-22","uros",26.5,"siperianhusky ","Sukutaulu",{"$f":"[1]Sorttaus!AG25","v":"https://jalostus.kennelliitto.fi/frmKoira.aspx?RekNo=FI45125%2F19&R=270"},"Näytä tiedot"]
["Pinkkisan's Funny Hachiko","Pinkkisan's Funny Hachiko43350",493.92181961986029,164.64060653995344,"Jämin Syyskisa","Johanna Pelli","DR8",169.42629754898059,"Ei","Kyllä","Jämin Syys-SM","Lauri Kivioja","DR8",165.20049764015818,null,null,"MiniDistance","Johanna pelli","DR",159.29502443072153,"Ei",2,"2018-09-07","uros",23,"siperianhusky ","Sukutaulu",{"$f":"[1]Sorttaus!AG43","v":"https://jalostus.kennelliitto.fi/frmKoira.aspx?RekNo=FI58292/20&R=270"},"Näytä tiedot"]
["Särmä","Särmä44798",480.68789335005675,160.22929778335225,"Jämin Syyskisa","Ilona Suutari","DS2",156.19237127917702,"Kyllä","Kyllä","Jämin Syys-SM","Lauri Kivioja","DR8",165.20049764015818,"Ei","Kyllä","MiniDistance","Johanna pelli","DR",159.29502443072153,"Kyllä",2,"2022-08-25","uros",26,"x","Sukutaulu",{"$f":"[1]Sorttaus!AG26","v":"https://www.trekkhundregisteret.no/dog/65963-sarma-sonja-pasi-heinonen/"},"Näytä tiedot"]
["Pinkkisan's Agent Triple X","Pinkkisan's Agent Triple X44104",416.86306383848552,138.9543546128285,"Jämin Syyskisa","Johanna Pelli","DR8",169.42629754898059,"Kyllä","Kyllä","Jämin Syys-SM","Lauri Kivioja","DR8",88.141741858783405,"Kyllä","Ei","MiniDistance","Johanna pelli","DR",159.29502443072153,null,null,"2020-09-30","narttu",19,"siperianhusky ","Sukutaulu",{"$f":"[1]Sorttaus!AG45","v":"https://jalostus.kennelliitto.fi/frmKoira.aspx?RekNo=FI58252/20&R=270"},"Näytä tiedot"]
["HappyHound Remus","HappyHound Remus44377",378.80272902567344,189.40136451283672,"Jämin Syyskisa","Tiina Hakala","DR4",186.69283281638718,"Kyllä","Kyllä","Jämin Syys-SM","Tiina Hakala","DR4",192.10989620928629,"Kyllä","Kyllä",null,null,null,null,null,null,"2021-06-30","uros",33,"x","Sukutaulu",{"$f":"[1]Sorttaus!AG27","v":"https://www.trekkhundregisteret.no/dog/56010-happy-hound-remus-tiina-hakala/"},"Näytä tiedot"]
["HappyHound Romulus","HappyHound Romulus44377",378.80272902567344,189.40136451283672,"Jämin Syyskisa","Tiina Hakala","DR4",186.69283281638718,"Ei","Kyllä","Jämin Syys-SM","Tiina Hakala","DR4",192.10989620928629,"Ei","Kyllä",null,null,null,null,null,null,"2021-06-30","uros",35,"x","Sukutaulu",{"$f":"[1]Sorttaus!AG28","v":"https://www.trekkhundregisteret.no/dog/56009-happy-hound-romulus-tiina-hakala/"},"Näytä tiedot"]
["HappyHound Rosvo","HappyHound Rosvo44377",378.80272902567344,189.40136451283672,"Jämin Syyskisa","Tiina Hakala","DR4",186.69283281638718,"Kyllä","Kyllä","Jämin Syys-SM","Tiina Hakala","DR4",192.10989620928629,"Kyllä","Kyllä",null,null,null,null,null,null,"2021-06-30","uros",32,"x","Sukutaulu",{"$f":"[1]Sorttaus!AG29","v":"https://www.trekkhundregisteret.no/dog/56007-happy-hound-rosvo-tiina-hakala/"},"Näytä tiedot"]
["Albus","Albus44390",362.80957303893456,181.40478651946728,"Jämin Syyskisa","Michela Leppänen","DS2",161.58186111112286,"Kyllä","Kyllä","Jämin Syys-SM","Pasi Heinonen","DR8",201.2277119278117,"Ei","Kyllä",null,null,null,null,null,null,"2021-07-13","uros",24,"x","Sukutaulu",{"$f":"[1]Sorttaus!AG30","v":"https://www.trekkhundregisteret.no/dog/65965-albus-joonas-elena-kallio/"},"Näytä tiedot"]
["Huruhukan Alwari Tuohitorvi","Huruhukan Alwari Tuohitorvi44283",355.75886138630528,118.58628712876843,"Jämin Syyskisa","Josefiina Santala","DR4",136.44931177008885,"Kyllä","Kyllä","Jämin Syys-SM","Josefiina Santala","DR4 ",143.66237781571209,"Kyllä","Kyllä","MiniDistance","Josefiina Santala","DR",75.647171800504324,"Kyllä",2,"2021-03-28","uros",20.5,"siperianhusky ","Sukutaulu",{"$f":"[1]Sorttaus!AG31","v":"https://jalostus.kennelliitto.fi/frmKoira.aspx?RekNo=FI26353/21&R=270"},"Näytä tiedot"]
["Loitsuttu Anyon","Loitsuttu Anyon44771",355.75886138630528,118.58628712876843,"Jämin Syyskisa","Josefiina Santala","DR4",136.44931177008885,"Ei","Kyllä","Jämin Syys-SM","Josefiina Santala","DR4 ",143.66237781571209,"Ei","Kyllä","MiniDistance","Josefiina Santala","DR",75.647171800504324,"Ei",2,"2022-07-29","uros",21.5,"siperianhusky ","Sukutaulu",{"$f":"[1]Sorttaus!AG32","v":"https://jalostus.kennelliitto.fi/frmKoira.aspx?RekNo=FI53004/22&R=270"},"Näytä tiedot"]
["Lumikiisan Taitava Narnia","Lumikiisan Taitava Narnia45134",355.75886138630528,118.58628712876843,"Jämin Syyskisa","Josefiina Santala","DR4",136.44931177008885,"Ei","Kyllä","Jämin Syys-SM","Josefiina Santala","DR4 ",143.66237781571209,"Ei","Kyllä","MiniDistance","Josefiina Santala","DR",75.647171800504324,"Ei",2,"2023-07-27","uros",27,"siperianhusky ","Sukutaulu",{"$f":"[1]Sorttaus!AG33","v":"https://jalostus.kennelliitto.fi/frmKoira.aspx?RekNo=FI46645/23&R=270"},"Näytä tiedot"]
["Lumikiisan Taitava Titania","Lumikiisan Taitava Titania45134",355.75886138630528,118.58628712876843,"Jämin Syyskisa","Josefiina Santala","DR4",136.44931177008885,"Kyllä","Kyllä","Jämin Syys-SM","Josefiina Santala","DR4 ",143.66237781571209,"Kyllä","Kyllä","MiniDistance","Josefiina Santala","DR",75.647171800504324,"Kyllä",2,"2023-07-27","uros",24,"siperianhusky ","Sukutaulu",{"$f":"[1]Sorttaus!AG34","v":"https://jalostus.kennelliitto.fi/frmKoira.aspx?RekNo=FI46648/23&R=270"},"Näytä tiedot"]
["Kivijärven Balalaika","Kivijärven Balalaika43629",342.85191601994808,171.42595800997404,"Jämin Syyskisa","Sampsa Mäki-Arvela","DR8",162.75525455182321,"Kyllä","Kyllä","Jämin Syys-SM","Sampsa Mäki-Arvela","DR8",180.09666146812486,"Kyllä","Kyllä",null,null,null,null,null,null,"2019-06-13","uros",24,"siperianhusky","Sukutaulu",{"$f":"[1]Sorttaus!AG35","v":"https://jalostus.kennelliitto.fi/frmKoira.aspx?RekNo=FI46190%2F19&R=270"},"Näytä tiedot"]
["Kivijärven Banjo","Kivijärven Banjo45090",342.85191601994808,171.42595800997404,"Jämin Syyskisa","Sampsa Mäki-Arvela","DR8",162.75525455182321,"Ei","Kyllä","Jämin Syys-SM","Sampsa Mäki-Arvela","DR8",180.09666146812486,"Kyllä","Kyllä",null,null,null,null,null,null,"2023-06-13","uros",27,"siperianhusky","Sukutaulu",{"$f":"[1]Sorttaus!AG36","v":"https://jalostus.kennelliitto.fi/frmKoira.aspx?RekNo=FI46188%2F19&R=270"},"Näytä tiedot"]
["Kivijärven Casi","Kivijärven Casi45244",342.85191601994808,171.42595800997404,"Jämin Syyskisa","Sampsa Mäki-Arvela","DR8",162.75525455182321,"Ei","Kyllä","Jämin Syys-SM","Sampsa Mäki-Arvela","DR8",180.09666146812486,"Ei","Kyllä",null,null,null,null,null,null,"2023-11-14","uros",25,"siperianhusky","Sukutaulu",{"$f":"[1]Sorttaus!AG37","v":"https://jalostus.kennelliitto.fi/frmKoira.aspx?RekNo=FI13341%2F24&R=270"},"Näytä tiedot"]
["Kivijärven Ceppu","Kivijärven Ceppu45244",342.85191601994808,{"$f":"AVERAGEIFS(H34:PV34,H$1:PV$1,\"Pisteet\",H34:PV34,\">0\")","v":171.42595800997404},"Jämin Syyskisa","Sampsa Mäki-Arvela","DR8",162.75525455182321,"Ei","Kyllä","Jämin Syys-SM","Sampsa Mäki-Arvela","DR8",180.09666146812486,"Ei","Ei",null,null,null,null,null,null,"2023-11-14","narttu",22,"siperianhusky",{"$f":"HYPERLINK(AB34,\"Sukutaulu\")","v":"Sukutaulu"},{"$f":"[1]Sorttaus!AG38","v":"https://jalostus.kennelliitto.fi/frmKoira.aspx?RekNo=FI13345%2F24&R=270"},"Näytä tiedot"]
["Kuurametsän Glacier","Kuurametsän Glacier44842",342.85191601994808,171.42595800997404,"Jämin Syyskisa","Sampsa Mäki-Arvela","DR8",162.75525455182321,"Ei","Kyllä","Jämin Syys-SM","Sampsa Mäki-Arvela","DR8",180.09666146812486,"Ei","Kyllä",null,null,null,null,null,null,"2022-10-08","uros",25,"siperianhusky","Sukutaulu",{"$f":"[1]Sorttaus!AG39","v":"https://jalostus.kennelliitto.fi/frmKoira.aspx?RekNo=FI55103%2F22&R=270"},"Näytä tiedot"]
["Kuurametsän N`joy","Kuurametsän N`joy44842",342.85191601994808,171.42595800997404,"Jämin Syyskisa","Sampsa Mäki-Arvela","DR8",162.75525455182321,"Ei","Kyllä","Jämin Syys-SM","Sampsa Mäki-Arvela","DR8",180.09666146812486,null,null,null,null,null,null,null,null,"2022-10-08","narttu",23,"siperianhusky","Sukutaulu",{"$f":"[1]Sorttaus!AG40","v":"https://jalostus.kennelliitto.fi/frmKoira.aspx?RekNo=FI55105%2F22&R=270"},"Näytä tiedot"]
["Mcahon Uncontrolled","Mcahon Uncontrolled45745",342.85191601994808,171.42595800997404,"Jämin Syyskisa","Sampsa Mäki-Arvela","DR8",162.75525455182321,"Kyllä","Kyllä","Jämin Syys-SM","Sampsa Mäki-Arvela","DR8",180.09666146812486,"Kyllä","Kyllä",null,null,null,null,null,null,"2025-03-29","uros",25,"siperianhusky","Sukutaulu",{"$f":"[1]Sorttaus!AG41","v":"https://jalostus.kennelliitto.fi/frmKoira.aspx?RekNo=FI26648%2F23&R=270"},"Näytä tiedot"]
["McAhon Vandaali","McAhon Vandaali45269",334.62679518913876,167.31339759456938,"Jämin Syyskisa","Johanna Pelli","DR8",169.42629754898059,"Ei","Kyllä","Jämin Syys-SM","Lauri Kivioja","DR8",165.20049764015818,"Ei","Kyllä",null,null,null,null,null,null,"2023-12-09","narttu",21,"siperianhusky ","Sukutaulu",{"$f":"[1]Sorttaus!AG42","v":"https://jalostus.kennelliitto.fi/frmKoira.aspx?RekNo=FI12756/24&R=270"},"Näytä tiedot"]
["Villiviimas Fantastinen Nala","Villiviimas Fantastinen Nala44352",259.64583078876535,129.82291539438268,"Jämin Syyskisa","Camilla Backman-Koskinen","DS2",124.69109986780626,"Kyllä","Kyllä","Jämin Syys-SM","Camilla Backman-Koskinen","DS2",134.95473092095909,"Kyllä","Kyllä",null,null,null,null,null,null,"2021-06-05","narttu",21,"siperianhusky ","Sukutaulu",{"$f":"[1]Sorttaus!AG44","v":"https://jalostus.kennelliitto.fi/frmKoira.aspx?RekNo=FI59166%2F21&R=270"},"Näytä tiedot"]
["LUMIKIISAN UNIIKKI NALA",null,211.74745146720539,211.74745146720539,null,null,null,null,null,null,null,null,null,null,null,null,"MiniDistance","Toni Kaivolainen","DR",211.74745146720539,"Ei",4,"2024-03-22","narttu",20,"siperianhusky","Sukutaulu",{"$f":"[1]Sorttaus!AG46","v":"https://jalostus.kennelliitto.fi/frmKoira.aspx?RekNo=FI30540/24&R=270"},"Näytä tiedot"]
["MIDNIGHT'S TWINKLE FÄBÄ",null,211.74745146720539,211.74745146720539,null,null,null,null,null,null,null,null,null,null,null,null,"MiniDistance","Toni Kaivolainen","DR",211.74745146720539,"Ei",4,"2023-01-11","uros",28,"siperianhusky","Sukutaulu",{"$f":"[1]Sorttaus!AG47","v":"https://jalostus.kennelliitto.fi/frmKoira.aspx?RekNo=FI15178%2F23&R=270"},"Näytä tiedot"]
["MIDNIGHT'S TWINKLE HILPPA",null,211.74745146720539,211.74745146720539,null,null,null,null,null,null,null,null,null,null,null,null,"MiniDistance","Toni Kaivolainen","DR",211.74745146720539,"Ei",4,"2023-01-11","narttu",20,"siperianhusky","Sukutaulu",{"$f":"[1]Sorttaus!AG48","v":"https://jalostus.kennelliitto.fi/frmKoira.aspx?RekNo=FI15179%2F23&R=270"},"Näytä tiedot"]
["MIDNIGHT'S TWINKLE NIETOS",null,211.74745146720539,211.74745146720539,null,null,null,null,null,null,null,null,null,null,null,null,"MiniDistance","Toni Kaivolainen","DR",211.74745146720539,"Kyllä",4,"2023-01-11","uros",26,"siperianhusky","Sukutaulu",{"$f":"[1]Sorttaus!AG49","v":"https://jalostus.kennelliitto.fi/frmKoira.aspx?RekNo=FI15180%2F23&R=270"},"Näytä tiedot"]
["SKYLINE CREAK'S FIRE IN THE SKY",null,211.74745146720539,211.74745146720539,null,null,null,null,null,null,null,null,null,null,null,null,"MiniDistance","Toni Kaivolainen","DR",211.74745146720539,"Kyllä",4,"2021-10-24","narttu",20,"siperianhusky","Sukutaulu",{"$f":"[1]Sorttaus!AG50","v":"https://jalostus.kennelliitto.fi/frmKoira.aspx?RekNo=FI59710/21"},"Näytä tiedot"]
["VETOAVA OFELIA",null,211.74745146720539,211.74745146720539,null,null,null,null,null,null,null,null,null,null,null,null,"MiniDistance","Toni Kaivolainen","DR",211.74745146720539,"Ei",4,"2023-02-18","narttu",20,"siperianhusky","Sukutaulu",{"$f":"[1]Sorttaus!AG51","v":"https://jalostus.kennelliitto.fi/frmKoira.aspx?RekNo=FI19312%2F23&R=270"},"Näytä tiedot"]
["VETOAVA PAKTU",null,211.74745146720539,211.74745146720539,null,null,null,null,null,null,null,null,null,null,null,null,"MiniDistance","Toni Kaivolainen","DR",211.74745146720539,"Ei",4,"2023-11-02","uros",26,"siperianhusky","Sukutaulu",{"$f":"[1]Sorttaus!AG52","v":"https://jalostus.kennelliitto.fi/frmKoira.aspx?RekNo=FI52599/23&R=270"},"Näytä tiedot"]
["YAYE-NON EAT MY DUST",null,211.74745146720539,211.74745146720539,null,null,null,null,null,null,null,null,null,null,null,null,"MiniDistance","Toni Kaivolainen","DR",211.74745146720539,"Ei",4,"2019-07-22","narttu",20,"siperianhusky","Sukutaulu",{"$f":"[1]Sorttaus!AG53","v":"https://jalostus.kennelliitto.fi/frmKoira.aspx?RekNo=FI42494/19&R=270"},"Näytä tiedot"]
["HappyHound Rinsessa","HappyHound Rinsessa44377",192.10989620928629,192.10989620928629,null,null,null,null,null,null,"Jämin Syys-SM","Tiina Hakala","DR4",192.10989620928629,"Ei","Kyllä",null,null,null,null,null,null,"2021-06-30","narttu",30,"x","Sukutaulu",{"$f":"[1]Sorttaus!AG54","v":"https://www.trekkhundregisteret.no/dog/56011-happy-hound-rinsessa-tiina-hakala/"},"Näytä tiedot"]
["Korpikylän Rin Tin Tin",null,187.60588232376759,187.60588232376759,null,null,null,null,null,null,null,null,null,null,null,null,"MiniDistance","Anne Riekki","DR",187.60588232376759,"Ei",4,"2024-02-13","narttu",21,"siperianhusky","Sukutaulu",{"$f":"[1]Sorttaus!AG55","v":"https://jalostus.kennelliitto.fi/frmKoira.aspx?RekNo=FI18501/24"},"Näytä tiedot"]
["Korpikylän Risto Reipas",null,187.60588232376759,187.60588232376759,null,null,null,null,null,null,null,null,null,null,null,null,"MiniDistance","Anne Riekki","DR",187.60588232376759,"Ei",4,"2024-02-13","uros",24,"siperianhusky","Sukutaulu",{"$f":"[1]Sorttaus!AG56","v":"https://jalostus.kennelliitto.fi/frmKoira.aspx?RekNo=FI18498%2F24&R=270"},"Näytä tiedot"]
["Soul n Mate Xxl",null,187.60588232376759,187.60588232376759,null,null,null,null,null,null,null,null,null,null,null,null,"MiniDistance","Anne Riekki","DR",187.60588232376759,"Kyllä",4,"2019-03-22","uros",25,"siperianhusky","Sukutaulu",{"$f":"[1]Sorttaus!AG57","v":"https://jalostus.kennelliitto.fi/frmKoira.aspx?RekNo=FI29877/19&R=270"},"Näytä tiedot"]
["Taikakallion Roihu",null,187.60588232376759,187.60588232376759,null,null,null,null,null,null,null,null,null,null,null,null,"MiniDistance","Anne Riekki","DR",187.60588232376759,"Kyllä",4,"2023-02-22","uros",25,"siperianhusky","Sukutaulu",{"$f":"[1]Sorttaus!AG58","v":"https://jalostus.kennelliitto.fi/frmKoira.aspx?RekNo=FI19221/23"},"Näytä tiedot"]
["Taikakallion Velho",null,187.60588232376759,187.60588232376759,null,null,null,null,null,null,null,null,null,null,null,null,"MiniDistance","Anne Riekki","DR",187.60588232376759,"Ei",4,"2023-02-22","uros",23,"siperianhusky","Sukutaulu",{"$f":"[1]Sorttaus!AG59","v":"https://jalostus.kennelliitto.fi/frmKoira.aspx?RekNo=FI19222/23"},"Näytä tiedot"]
["Wintry Joonatan",null,187.60588232376759,187.60588232376759,null,null,null,null,null,null,null,null,null,null,null,null,"MiniDistance","Anne Riekki","DR",187.60588232376759,"Kyllä",4,"2019-03-03","uros",24,"siperianhusky","Sukutaulu",{"$f":"[1]Sorttaus!AG60","v":"https://jalostus.kennelliitto.fi/frmKoira.aspx?RekNo=FI21382/19"},"Näytä tiedot"]
["Wintry Jum Jum",null,187.60588232376759,187.60588232376759,null,null,null,null,null,null,null,null,null,null,null,null,"MiniDistance","Anne Riekki","DR",187.60588232376759,"Kyllä",4,"2019-03-03","uros",25,"siperianhusky","Sukutaulu",{"$f":"[1]Sorttaus!AG61","v":"https://jalostus.kennelliitto.fi/frmKoira.aspx?RekNo=FI21380/19"},"Näytä tiedot"]
["Cela","Cela43565",182.69227133645552,182.69227133645552,null,null,null,null,null,null,"Jämin Syys-SM","Pekka Niemi","DS2",182.69227133645552,"Kyllä","Kyllä",null,null,null,null,null,null,"2019-04-10","narttu",25,"lyhytkarvainen saksanseisoja ","Sukutaulu",{"$f":"[1]Sorttaus!AG62","v":"https://www.trekkhundregisteret.no/dog/66978-ciri-cirin-dalveniehku-ciri-cirin/"},"Näytä tiedot"]
["Mezcal","Mezcal44670",182.69227133645552,182.69227133645552,null,null,null,null,null,null,"Jämin Syys-SM","Pekka Niemi","DS2",182.69227133645552,"Kyllä","Kyllä",null,null,null,null,null,null,"2022-04-19","narttu",28,"x","Sukutaulu",{"$f":"[1]Sorttaus!AG63","v":"https://www.trekkhundregisteret.no/dog/58133-mezcal-veronika-navratilova-and-vaclav-vancura/"},"Näytä tiedot"]
["Mcahon Unavaileable",null,180.09666146812486,180.09666146812486,null,null,null,null,null,null,"Jämin Syys-SM","Sampsa Mäki-Arvela","DR8",180.09666146812486,"Ei","Kyllä",null,null,null,null,null,null,"2023-03-29","narttu",22,"siperianhusky ","Sukutaulu",{"$f":"[1]Sorttaus!AG64","v":"https://jalostus.kennelliitto.fi/frmKoira.aspx?RekNo=FI26648%2F23&R=270"},"Näytä tiedot"]
["Termagant's Crocotta",null,178.10042083962941,178.10042083962941,null,null,null,null,null,null,"Jämin Syys-SM","Janica Kindt","DR4 ",178.10042083962941,"Kyllä","Kyllä",null,null,null,null,null,null,"2021-01-08","narttu",24,"lyhytkarvainen saksanseisoja ","Sukutaulu",{"$f":"[1]Sorttaus!AG65","v":"https://jalostus.kennelliitto.fi/frmKoira.aspx?RekNo=FI15933/21&R=119"},"Näytä tiedot"]
["Termagant's Eclipse","Termagant's Eclipse45223",178.10042083962941,178.10042083962941,null,null,null,null,null,null,"Jämin Syys-SM","Janica Kindt","DR4",178.10042083962941,"Ei","Kyllä",null,null,null,null,null,null,"2023-10-24","uros",35,"lyhytkarvainen saksanseisoja ","Sukutaulu",{"$f":"[1]Sorttaus!AG66","v":"https://jalostus.kennelliitto.fi/frmKoira.aspx?RekNo=FI51469%2F23&R=119"},"Näytä tiedot"]
["Jehu","Jehu43910",166.11698472759269,166.11698472759269,null,null,null,null,null,null,"Jämin Syys-SM","Tuomas Notko","DS2 ",166.11698472759269,"Kyllä","Kyllä",null,null,null,null,null,null,"2020-03-20","uros",31,"x","Sukutaulu",{"$f":"[1]Sorttaus!AG67","v":"https://www.trekkhundregisteret.no/dog/55386-jehu-jenni-kreivi/"},"Näytä tiedot"]
["Liekki (Salama)","Liekki (Salama)42222",166.11698472759269,166.11698472759269,null,null,null,null,null,null,"Jämin Syys-SM","Tuomas Notko","DS2 ",166.11698472759269,"Kyllä","Kyllä",null,null,null,null,null,null,"2015-08-06","uros",25,"x","Sukutaulu",{"$f":"[1]Sorttaus!AG68","v":"https://www.trekkhundregisteret.no/dog/43889-thedogriders-yur-salama-samuli-nissinen/"},"Näytä tiedot"]
["Mcahon Unavailable","Mcahon Unavailable45014",162.75525455182321,162.75525455182321,"Jämin Syyskisa","Sampsa Mäki-Arvela","DR8",162.75525455182321,"Ei","Kyllä",null,null,null,null,null,null,null,null,null,null,null,null,"2023-03-29","narttu",21,"siperianhusky","Sukutaulu",{"$f":"[1]Sorttaus!AG69","v":"https://jalostus.kennelliitto.fi/frmKoira.aspx?RekNo=FI26649%2F23&R=270"},"Näytä tiedot"]
["ALKUVOIMAN HARLEY QUINN","ALKUVOIMAN HARLEY QUINN44721",160.83333681305805,160.83333681305805,"Jämin Syyskisa","Milla Gröndahl","DR4",160.83333681305805,"Kyllä","Kyllä",null,null,null,null,null,null,null,null,null,null,null,null,"2022-06-09","narttu",17,"siperianhusky ","Sukutaulu",{"$f":"[1]Sorttaus!AG70","v":"https://jalostus.kennelliitto.fi/frmKoira.aspx?RekNo=FI41523%2F22&R=270"},"Näytä tiedot"]
["ALKUVOIMAN THE JOKER","ALKUVOIMAN THE JOKER44721",160.83333681305805,160.83333681305805,"Jämin Syyskisa","Milla Gröndahl","DR4",160.83333681305805,"Kyllä","Kyllä",null,null,null,null,null,null,null,null,null,null,null,null,"2022-06-09","uros",26,"siperianhusky ","Sukutaulu",{"$f":"[1]Sorttaus!AG71","v":"https://jalostus.kennelliitto.fi/frmKoira.aspx?RekNo=FI41524%2F22&R=270"},"Näytä tiedot"]
["ALKUVOIMAN THE RIDDLER","ALKUVOIMAN THE RIDDLER44721",160.83333681305805,{"$f":"AVERAGEIFS(H66:PV66,H$1:PV$1,\"Pisteet\",H66:PV66,\">0\")","v":160.83333681305805},"Jämin Syyskisa","Milla Gröndahl","DR4",160.83333681305805,"Ei","Kyllä",null,null,null,null,null,null,null,null,null,null,null,null,"2022-06-09","uros",27,"siperianhusky ","Sukutaulu",{"$f":"[1]Sorttaus!AG72","v":"https://jalostus.kennelliitto.fi/frmKoira.aspx?RekNo=FI41525%2F22&R=270"},"Näytä tiedot"]
["ALKUVOIMAN TWO-FACE","ALKUVOIMAN TWO-FACE44721",160.83333681305805,160.83333681305805,"Jämin Syyskisa","Milla Gröndahl","DR4",160.83333681305805,"Ei","Kyllä",null,null,null,null,null,null,null,null,null,null,null,null,"2022-06-09","uros",25,"siperianhusky ","Sukutaulu",{"$f":"[1]Sorttaus!AG73","v":"https://jalostus.kennelliitto.fi/frmKoira.aspx?RekNo=FI41527%2F22&R=270"},"Näytä tiedot"]
["Fun racing Jagger","Fun racing Jagger43243",156.19237127917702,156.19237127917702,"Jämin Syyskisa","Ilona Suutari","DS2",156.19237127917702,"Kyllä","Kyllä",null,null,null,null,null,null,null,null,null,null,null,null,"2018-05-23","uros",24,"x","Sukutaulu",{"$f":"[1]Sorttaus!AG74","v":"https://www.trekkhundregisteret.no/dog/68271-jagger-unknown-breeder/"},"Näytä tiedot"]
["Jafar",null,154.11223019944939,154.11223019944939,null,null,null,null,null,null,null,null,null,null,null,null,"MiniDistance","Tiina Kaivolainen","DR",154.11223019944939,"Ei",4,"2018-01-31","uros",27,"siperianhusky","Sukutaulu",{"$f":"[1]Sorttaus!AG75","v":"https://jalostus.kennelliitto.fi/frmKoira.aspx?RekNo=FI21074/18&R=270"},"Näytä tiedot"]
["Laika",null,154.11223019944939,154.11223019944939,null,null,null,null,null,null,null,null,null,null,null,null,"MiniDistance","Tiina Kaivolainen","DR",154.11223019944939,"Kyllä",4,"2016-10-14","narttu",20,"siperianhusky","Sukutaulu",{"$f":"[1]Sorttaus!AG76","v":"https://jalostus.kennelliitto.fi/frmKoira.aspx?RekNo=FI53977%2F16&R=270"},"Näytä tiedot"]
["Lumi",null,154.11223019944939,154.11223019944939,null,null,null,null,null,null,null,null,null,null,null,null,"MiniDistance","Tiina Kaivolainen","DR",154.11223019944939,"Ei",4,"2016-10-15","narttu",20,"siperianhusky","Sukutaulu",{"$f":"[1]Sorttaus!AG77","v":"https://jalostus.kennelliitto.fi/frmKoira.aspx?RekNo=FI53981%2F16&R=270"},"Näytä tiedot"]
["Timi",null,154.11223019944939,154.11223019944939,null,null,null,null,null,null,null,null,null,null,null,null,"MiniDistance","Tiina Kaivolainen","DR",154.11223019944939,"Kyllä",4,"2017-02-07","uros",26,"siperianhusky","Sukutaulu",{"$f":"[1]Sorttaus!AG78","v":"https://jalostus.kennelliitto.fi/frmKoira.aspx?RekNo=FI18600%2F17&R=270"},"Näytä tiedot"]
["Soul’n Mate Xxl","Soul’n Mate Xxl43546",146.84614785733052,146.84614785733052,"Jämin Syyskisa","Kirsi Järvenpää","DR4",146.84614785733052,"Kyllä","Kyllä",null,null,null,null,null,null,null,null,null,null,null,null,"2019-03-22","uros",26.5,"siperianhusky ","Sukutaulu",{"$f":"[1]Sorttaus!AG79","v":"https://jalostus.kennelliitto.fi/frmKoira.aspx?RekNo=FI29877/19"},"Näytä tiedot"]
["Wintry Hulivili","Wintry Hulivili44483",146.84614785733052,146.84614785733052,"Jämin Syyskisa","Kirsi Järvenpää","DR4",146.84614785733052,"Ei","Kyllä",null,null,null,null,null,null,null,null,null,null,null,null,"2021-10-14","uros",26,"siperianhusky ","Sukutaulu",{"$f":"[1]Sorttaus!AG80","v":"https://jalostus.kennelliitto.fi/frmKoira.aspx?RekNo=FI61676/21"},"Näytä tiedot"]
["Kielonkukan Rosemary","Kielonkukan Rosemary43978",145.56569936702221,145.56569936702221,"Jämin Syyskisa","Elisa Tuisku","DR4",145.56569936702221,"Kyllä","Kyllä",null,null,null,null,null,null,null,null,null,null,null,null,"2020-05-27","narttu",19.5,"siperianhusky ","Sukutaulu",{"$f":"[1]Sorttaus!AG81","v":"https://jalostus.kennelliitto.fi/frmKoira.aspx?RekNo=FI34502/20&R=270"},"Näytä tiedot"]
["Lumikirsun Fantsu Fiona","Lumikirsun Fantsu Fiona45158",145.56569936702221,145.56569936702221,"Jämin Syyskisa","Elisa Tuisku","DR4",145.56569936702221,"Kyllä","Kyllä",null,null,null,null,null,null,null,null,null,null,null,null,"2023-08-20","narttu",17.5,"siperianhusky ","Sukutaulu",{"$f":"[1]Sorttaus!AG82","v":"https://jalostus.kennelliitto.fi/frmKoira.aspx?RekNo=FI44120/23&R=270"},"Näytä tiedot"]
["Lumikirsun Fantsu Fredi","Lumikirsun Fantsu Fredi45158",145.56569936702221,145.56569936702221,"Jämin Syyskisa","Elisa Tuisku","DR4",145.56569936702221,"Ei","Kyllä",null,null,null,null,null,null,null,null,null,null,null,null,"2023-08-20","uros",19.5,"siperianhusky ","Sukutaulu",{"$f":"[1]Sorttaus!AG83","v":"https://jalostus.kennelliitto.fi/frmKoira.aspx?RekNo=FI44123%2F23&R=270"},"Näytä tiedot"]
["Skyline Creak's Endless Echo","Skyline Creak's Endless Echo44032",145.56569936702221,145.56569936702221,"Jämin Syyskisa","Elisa Tuisku","DR4",145.56569936702221,"Ei","Kyllä",null,null,null,null,null,null,null,null,null,null,null,null,"2020-07-20","uros",23,"siperianhusky ","Sukutaulu",{"$f":"[1]Sorttaus!AG84","v":"https://jalostus.kennelliitto.fi/frmKoira.aspx?RekNo=FI43156/20&R=270"},"Näytä tiedot"]
["My Flaming Dreamaker","My Flaming Dreamaker43943",142.33358839074134,142.33358839074134,"Jämin Syyskisa","Sini Riihelä","DR4",142.33358839074134,"Kyllä","Kyllä",null,null,null,null,null,null,null,null,null,null,null,null,"2020-04-22","narttu",18,"siperianhusky ","Sukutaulu",{"$f":"[1]Sorttaus!AG85","v":"https://jalostus.kennelliitto.fi/frmKoira.aspx?RekNo=FI31859/20&R=270"},"Näytä tiedot"]
["My Flaming Dreamtale","My Flaming Dreamtale43943",142.33358839074134,142.33358839074134,"Jämin Syyskisa","Sini Riihelä","DR4",142.33358839074134,"Ei","Kyllä",null,null,null,null,null,null,null,null,null,null,null,null,"2020-04-22","uros",22,"siperianhusky ","Sukutaulu",{"$f":"[1]Sorttaus!AG86","v":"https://jalostus.kennelliitto.fi/frmKoira.aspx?RekNo=FI31858%2F20&R=270"},"Näytä tiedot"]
["My Flaming Powerpuff Blossom","My Flaming Powerpuff Blossom44195",142.33358839074134,142.33358839074134,"Jämin Syyskisa","Sini Riihelä","DR4",142.33358839074134,"Kyllä","Kyllä",null,null,null,null,null,null,null,null,null,null,null,null,"2020-12-30","narttu",17,"siperianhusky ","Sukutaulu",{"$f":"[1]Sorttaus!AG87","v":"https://jalostus.kennelliitto.fi/frmKoira.aspx?RekNo=FI16062/21&R=270"},"Näytä tiedot"]
["My Flaming Rebel At Heart","My Flaming Rebel At Heart44715",142.33358839074134,142.33358839074134,"Jämin Syyskisa","Sini Riihelä","DR4",142.33358839074134,"Ei","Kyllä",null,null,null,null,null,null,null,null,null,null,null,null,"2022-06-03","narttu",17,"siperianhusky ","Sukutaulu",{"$f":"[1]Sorttaus!AG88","v":"https://jalostus.kennelliitto.fi/frmKoira.aspx?RekNo=FI39254/22&R=270"},"Näytä tiedot"]
["Lumiikisan Onnellinen Tytti","Lumiikisan Onnellinen Tytti44132",134.95473092095909,134.95473092095909,null,null,null,null,null,null,"Jämin Syys-SM","Camilla Backman-Koskinen","DS2",134.95473092095909,"Kyllä","Kyllä",null,null,null,null,null,null,"2020-10-28","narttu",25,"siperianhusky ","Sukutaulu",{"$f":"[1]Sorttaus!AG89","v":"https://jalostus.kennelliitto.fi/frmKoira.aspx?RekNo=FI10983%2F21&R=270"},"Näytä tiedot"]
["Kivijärven Alma","Kivijärven Alma43423",130.57122736182953,130.57122736182953,null,null,null,null,null,null,"Jämin Syys-SM","Ville Väänänen","DS2",130.57122736182953,"Kyllä","Kyllä",null,null,null,null,null,null,"2018-11-19","narttu",22,"siperianhusky ","Sukutaulu",{"$f":"[1]Sorttaus!AG90","v":"https://jalostus.kennelliitto.fi/frmKoira.aspx?RekNo=FI12754/19&R=270"},"Näytä tiedot"]
["Ritarinkannus","Ritarinkannus43820",130.57122736182953,130.57122736182953,null,null,null,null,null,null,"Jämin Syys-SM","Ville Väänänen","DS2",130.57122736182953,"Kyllä","Kyllä",null,null,null,null,null,null,"2019-12-21","uros",23,"siperianhusky ","Sukutaulu",{"$f":"[1]Sorttaus!AG91","v":"https://jalostus.kennelliitto.fi/frmKoira.aspx?RekNo=EJ17119/20&R=270"},"Näytä tiedot"]
["Lumikiisan Mahtava Nova","Lumikiisan Mahtava Nova43668",124.69109986780626,124.69109986780626,"Jämin Syyskisa","Camilla Backman-Koskinen","DS2",124.69109986780626,"Kyllä","Kyllä",null,null,null,null,null,null,null,null,null,null,null,null,"2019-07-22","narttu",22,"siperianhusky ","Sukutaulu",{"$f":"[1]Sorttaus!AG92","v":"https://jalostus.kennelliitto.fi/frmKoira.aspx?RekNo=FI48042/19&R=270"},"Näytä tiedot"]
["Manyway's Cover Me In Sunshine","Manyway's Cover Me In Sunshine373238",109.60265911119808,109.60265911119808,"Jämin Syyskisa","Päivi Keinänen","DS2",109.60265911119808,"Kyllä","Kyllä",null,null,null,null,null,null,null,null,null,null,null,null,"2921-11-20","narttu",22,"siperianhusky","Sukutaulu",{"$f":"[1]Sorttaus!AG93","v":"https://jalostus.kennelliitto.fi/frmKoira.aspx?RekNo=FI62055%2F21&R=270"},"Näytä tiedot"]
["Noman's Empire Earthquake","Noman's Empire Earthquake43433",109.60265911119808,109.60265911119808,"Jämin Syyskisa","Päivi Keinänen","DS2",109.60265911119808,"Kyllä","Kyllä",null,null,null,null,null,null,null,null,null,null,null,null,"2018-11-29","uros",28,"siperianhusky","Sukutaulu",{"$f":"[1]Sorttaus!AG94","v":"https://jalostus.kennelliitto.fi/frmKoira.aspx?RekNo=FI13990/19&R=270"},"Näytä tiedot"]
["Tomorrow's Fighter Blossom","Tomorrow's Fighter Blossom44516",104.2209983935883,104.2209983935883,"Jämin Syyskisa","Iira Rantametsä","DS2",104.2209983935883,"Kyllä","Kyllä",null,null,null,null,null,null,null,null,null,null,null,null,"2021-11-16","narttu",20,"siperianhusky ","Sukutaulu",{"$f":"[1]Sorttaus!AG95","v":"https://jalostus.kennelliitto.fi/frmKoira.aspx?RekNo=FI10475%2F22&R=270"},"Näytä tiedot"]
["ATACIARA MENNINKÄINEN","ATACIARA MENNINKÄINEN44326",102.95552614250703,102.95552614250703,"Jämin Syyskisa","Ilpo Hacklin","DS2",102.95552614250703,"Kyllä","Kyllä",null,null,null,null,null,null,null,null,null,null,null,null,"2021-05-10","uros",42,"alaskanmalamuutti\t","Sukutaulu",{"$f":"[1]Sorttaus!AG96","v":"https://jalostus.kennelliitto.fi/frmKoira.aspx?RekNo=FI34374%2F21&R=243"},"Näytä tiedot"]
["FROZEN EAR FINAL CHANCE","FROZEN EAR FINAL CHANCE45107",102.95552614250703,102.95552614250703,"Jämin Syyskisa","Ilpo Hacklin","DS2",102.95552614250703,"Kyllä","Kyllä",null,null,null,null,null,null,null,null,null,null,null,null,"2023-06-30","uros",40,"alaskanmalamuutti","Sukutaulu",{"$f":"[1]Sorttaus!AG97","v":"https://jalostus.kennelliitto.fi/frmKoira.aspx?RekNo=FI38136%2F23&R=243"},"Näytä tiedot"]
["Arktiska Vatti-Hatti",null,101.91893144646036,101.91893144646036,null,null,null,null,null,null,null,null,null,null,null,null,"MiniDistance","Mari Kalenius","DR",101.91893144646036,"Ei",2,"2022-06-21","uros",25,"siperianhusky","Sukutaulu",{"$f":"[1]Sorttaus!AG98","v":"https://jalostus.kennelliitto.fi/frmKoira.aspx?RekNo=FI33891%2F22&R=270"},"Näytä tiedot"]
["Sysilouhen Runolf",null,101.91893144646036,101.91893144646036,null,null,null,null,null,null,null,null,null,null,null,null,"MiniDistance","Mari Kalenius","DR",101.91893144646036,"Ei",2,"2019-08-13","uros",24,"siperianhusky","Sukutaulu",{"$f":"[1]Sorttaus!AG99","v":"https://jalostus.kennelliitto.fi/frmKoira.aspx?RekNo=FI39575%2F19&R=270"},"Näytä tiedot"]
["Tunturitarun Arktinen-Menijä",null,101.91893144646036,101.91893144646036,null,null,null,null,null,null,null,null,null,null,null,null,"MiniDistance","Mari Kalenius","DR",101.91893144646036,"Kyllä",2,"2022-11-11","uros",25,"siperianhusky","Sukutaulu",{"$f":"[1]Sorttaus!AG100","v":"https://jalostus.kennelliitto.fi/frmKoira.aspx?RekNo=FI10137%2F23&R=270"},"Näytä tiedot"]
["Vetoava Nieida",null,101.91893144646036,101.91893144646036,null,null,null,null,null,null,null,null,null,null,null,null,"MiniDistance","Mari Kalenius","DR",101.91893144646036,"Kyllä",2,"2021-12-10","narttu",18,"siperianhusky","Sukutaulu",{"$f":"[1]Sorttaus!AG101","v":"https://jalostus.kennelliitto.fi/frmKoira.aspx?RekNo=FI12888%2F22&R=270"},"Näytä tiedot"]
["ABSOLUTELY SILVER","ABSOLUTELY SILVER44750",101.06350184354112,101.06350184354112,null,null,null,null,null,null,"Jämin Syys-SM","Wilma Hänninen","DS2",101.06350184354112,"Kyllä","Kyllä",null,null,null,null,null,null,"2022-07-08","narttu",19,"jakutianlaika","Sukutaulu",{"$f":"[1]Sorttaus!AG102","v":"https://jalostus.kennelliitto.fi/frmKoira.aspx?RekNo=FI28674/23&R=365"},"Näytä tiedot"]
["ARTIC TRAVEL BRONZITE","ARTIC TRAVEL BRONZITE44004",101.06350184354112,101.06350184354112,null,null,null,null,null,null,"Jämin Syys-SM","Wilma Hänninen","DS2",101.06350184354112,"Kyllä","Kyllä",null,null,null,null,null,null,"2020-06-22","narttu",19,"jakutianlaika","Sukutaulu",{"$f":"[1]Sorttaus!AG103","v":"https://jalostus.kennelliitto.fi/frmKoira.aspx?RekNo=FI19536%2F22&R=365"},"Näytä tiedot"]
["Kulkijan mahtava malla","Kulkijan mahtava malla44392",99.102778467858315,{"$f":"AVERAGEIFS(H98:PV98,H$1:PV$1,\"Pisteet\",H98:PV98,\">0\")","v":99.102778467858315},"Jämin Syyskisa","Rhianon Rintamäki","DS2",99.102778467858315,"Kyllä","Kyllä",null,null,null,null,null,null,null,null,null,null,null,null,"2021-07-15","narttu",21,"jakutianlaika",{"$f":"HYPERLINK(AB98,\"Sukutaulu\")","v":"Sukutaulu"},{"$f":"[1]Sorttaus!AG104","v":"https://jalostus.kennelliitto.fi/frmKoira.aspx?RekNo=FI53763%2F21&R=365"},"Näytä tiedot"]
["Slavinja saga","Slavinja saga45249",99.102778467858315,99.102778467858315,"Jämin Syyskisa","Rhianon Rintamäki","DS2",99.102778467858315,"Ei","Kyllä",null,null,null,null,null,null,null,null,null,null,null,null,"2023-11-19","narttu",17,"jakutianlaika","Sukutaulu",{"$f":"[1]Sorttaus!AG105","v":"https://jalostus.kennelliitto.fi/frmKoira.aspx?RekNo=FI19165%2F25&R=365"},"Näytä tiedot"]
["Arctic Power spiderman",null,75.647171800504324,75.647171800504324,null,null,null,null,null,null,null,null,null,null,null,null,"MiniDistance","Josefiina Santala","DR",75.647171800504324,"Kyllä",2,"2021-02-26","uros",24,"siperianhusky","Sukutaulu",{"$f":"[1]Sorttaus!AG106","v":"https://jalostus.kennelliitto.fi/frmKoira.aspx?RekNo=FI23103/21&R=270"},"Näytä tiedot"]
["Kummitus",null,75.647171800504324,75.647171800504324,null,null,null,null,null,null,null,null,null,null,null,null,"MiniDistance","Josefiina Santala","DR",75.647171800504324,"Ei",2,"2020-06-18","uros",24,"siperianhusky","Sukutaulu",{"$f":"[1]Sorttaus!AG107","v":"https://jalostus.kennelliitto.fi/frmKoira.aspx?RekNo=FI47022%2F20&R=270"},"Näytä tiedot"]
["Ruska",null,75.647171800504324,75.647171800504324,null,null,null,null,null,null,null,null,null,null,null,null,"MiniDistance","Josefiina Santala","DR",75.647171800504324,"Ei",2,"2021-09-28","narttu",17,"siperianhusky","Sukutaulu",{"$f":"[1]Sorttaus!AG108","v":"https://jalostus.kennelliitto.fi/frmKoira.aspx?RekNo=FI10975%2F22&R=270"},"Näytä tiedot"]
["Sleepless Holy Smoke",null,75.647171800504324,75.647171800504324,null,null,null,null,null,null,null,null,null,null,null,null,"MiniDistance","Josefiina Santala","DR",75.647171800504324,"Ei",2,"2023-11-04","uros",23.5,"siperianhusky","Sukutaulu",{"$f":"[1]Sorttaus!AG109","v":"https://jalostus.kennelliitto.fi/frmKoira.aspx?RekNo=FI10164/24&R=270"},"Näytä tiedot"]
[null,null,null,null,null,null,null,null,null,null,null,null,null,null,null,null,null,null,null,null,null,null,null,null,null,null,"Sukutaulu"]
[null,null,null,null,null,null,null,null,null,null,null,null,null,null,null,null,null,null,null,null,null,null,null,null,null,null,"Sukutaulu"]
[null,null,null,null,null,null,null,null,null,null,null,null,null,null,null,null,null,null,null,null,null,null,null,null,null,null,"Sukutaulu"]
[null,null,null,null,null,null,null,null,null,null,null,null,null,null,null,null,null,null,null,null,null,null,null,null,null,null,"Sukutaulu"]
[null,null,null,null,null,null,null,null,null,null,null,null,null,null,null,null,null,null,null,null,null,null,null,null,null,null,"Sukutaulu"]
[null,null,null,null,null,null,null,null,null,null,null,null,null,null,null,null,null,null,null,null,null,null,null,null,null,null,"Sukutaulu"]